bitfinex/quotes_BTCUSD_20241010
["timestamp","ask_amount","ask_price","bid_price","bid_amount"]
[1728594785077,0.00363,59738.0,59737.0,1.8517093]
[1728594785291,0.00363,59738.0,59737.0,1.95181476]
[1728594785501,0.00363,59738.0,59737.0,1.8517093]
[1728594786169,0.00363,59738.0,59737.0,1.92678246]
[1728594786627,0.00363,59738.0,59737.0,1.8517093]
[1728594792281,0.00363,59738.0,59737.0,1.8525243]
[1728594808453,0.00363,59738.0,59737.0,1.90254208]
[1728594808690,0.00363,59738.0,59737.0,1.8525243]
[1728594808919,0.08043,59738.0,59737.0,1.8525243]
[1728594813446,0.08043,59738.0,59737.0,1.8505243]
[1728594813615,0.30066842,59738.0,59737.0,0.008815]
[1728594813811,0.46806542,59738.0,59737.0,0.008815]
[1728594814012,0.47304613,59738.0,59737.0,0.008815]
[1728594814651,0.47204613,59738.0,59737.0,0.008815]
[1728594815320,0.47204613,59738.0,59737.0,0.000815]
[1728594815321,0.47104613,59738.0,59737.0,0.000815]
[1728594815731,0.47204613,59738.0,59737.0,0.000815]
[1728594815942,0.47304613,59738.0,59737.0,0.008815]
[1728594816363,0.47204613,59738.0,59737.0,0.008815]
[1728594816574,0.47104613,59738.0,59737.0,0.000815]
[1728594816779,0.47104613,59738.0,59737.0,0.002815]
[1728594818307,0.47104613,59738.0,59737.0,0.000815]
[1728594818517,0.47104613,59738.0,59737.0,0.002815]
[1728594818855,0.34380771,59738.0,59737.0,0.002815]
[1728594819287,0.34380771,59738.0,59737.0,0.000815]
[1728594819486,0.34380771,59738.0,59737.0,0.001815]
[1728594820010,0.34480771,59738.0,59737.0,0.001815]
[1728594820230,0.47204613,59738.0,59737.0,0.001815]
[1728594825291,0.34480771,59738.0,59737.0,0.001815]
[1728594825976,0.17741071,59738.0,59737.0,0.001815]
[1728594826205,0.17741071,59738.0,59737.0,0.169215]
[1728594826852,0.17741071,59738.0,59737.0,0.171215]
[1728594827299,0.17243,59738.0,59737.0,0.169215]
[1728594827536,0.17741089,59738.0,59737.0,0.174215]
[1728594827773,0.17741089,59738.0,59737.0,0.173215]
[1728594828007,0.17741089,59738.0,59737.0,0.174215]
[1728594828456,0.17641089,59738.0,59737.0,0.175215]
[1728594828677,0.17641089,59738.0,59737.0,0.177215]
[1728594829154,0.08341089,59738.0,59737.0,0.18056275]
[1728594829360,0.08341089,59738.0,59737.0,0.177215]
[1728594829572,0.08341089,59738.0,59737.0,0.18056267]
[1728594830233,0.07843,59738.0,59737.0,0.177215]
[1728594830941,0.08340841,59738.0,59737.0,0.177215]
[1728594833505,0.08340841,59738.0,59737.0,0.34987198]
[1728594833721,0.08340841,59738.0,59737.0,0.3465243]
[1728594834618,0.07843,59738.0,59737.0,0.3465243]
[1728594834831,0.08340881,59738.0,59737.0,0.3465243]
[1728594840468,0.08340881,59738.0,59737.0,0.009815]
[1728594840692,0.18000881,59738.0,59737.0,0.177215]
[1728594841343,0.18000881,59738.0,59737.0,0.007815]
[1728594842479,0.18100881,59738.0,59737.0,0.007815]
[1728594843230,0.34840581,59738.0,59737.0,0.000815]
[1728594843686,0.34840581,59738.0,59737.0,0.002815]
[1728594845393,0.34840581,59738.0,59737.0,0.000815]
[1728594846316,0.18100881,59738.0,59737.0,0.000815]
[1728594847657,0.18100881,59738.0,59737.0,0.168215]
[1728594847883,0.18100881,59738.0,59737.0,0.170215]
[1728594849915,0.18100881,59738.0,59737.0,0.175215]
[1728594856560,0.18100881,59738.0,59737.0,0.007815]
[1728594874482,0.18100881,59738.0,59737.0,0.005815]
[1728594876145,0.18100881,59738.0,59737.0,0.173215]
[1728594876345,0.18100881,59738.0,59737.0,0.005815]
[1728594876748,0.18100881,59738.0,59737.0,0.007815]
[1728594877184,0.18100881,59738.0,59737.0,0.175215]
[1728594877430,0.17603,59738.0,59737.0,0.175215]
[1728594878108,0.17503,59738.0,59737.0,0.05798813]
[1728594878335,0.17503,59738.0,59737.0,0.008815]
[1728594878548,0.17957419,59738.0,59737.0,0.008815]
[1728594879204,0.17503,59738.0,59737.0,0.176215]
[1728594879501,0.17957657,59738.0,59737.0,0.22638528]
[1728594879731,0.17957657,59738.0,59737.0,0.176215]
[1728594880210,0.17503,59738.0,59737.0,0.176215]
[1728594880417,0.00163,59738.0,59737.0,0.54801814]
[1728594880660,0.00163,59738.0,59737.0,0.57310328]
[1728594881285,0.00163,59738.0,59737.0,0.44586486]
[1728594881508,0.00163,59738.0,59737.0,0.3455243]
[1728594881711,0.00163,59738.0,59737.0,0.42075831]
[1728594882085,0.00163,59738.0,59737.0,0.3455243]
[1728594882530,0.00163,59738.0,59737.0,0.42074833]
[1728594882936,0.00163,59738.0,59737.0,0.44586486]
[1728594883347,0.00163,59738.0,59737.0,0.3455243]
[1728594883937,0.00163,59738.0,59737.0,0.44586486]
[1728594884591,0.00163,59738.0,59737.0,0.3455243]
[1728594885202,0.00163,59738.0,59737.0,0.44586486]
[1728594885407,0.00163,59738.0,59737.0,0.3455243]
[1728594885613,0.00163,59738.0,59737.0,0.42072601]
[1728594886902,0.17383,59738.0,59737.0,0.006815]
[1728594887377,0.17837499,59738.0,59737.0,0.006815]
[1728594889608,0.17837499,59738.0,59737.0,0.176215]
[1728594890015,0.17383,59738.0,59737.0,0.176215]
[1728594890160,0.17837499,59738.0,59737.0,0.176215]
[1728594890563,0.17383,59738.0,59737.0,0.176215]
[1728594890998,0.17837499,59738.0,59737.0,0.176215]
[1728594893017,0.17837499,59738.0,59737.0,0.006815]
[1728594893238,0.34577199,59738.0,59737.0,0.001815]
[1728594897150,0.72395354,59738.0,59737.0,0.001815]
[1728594897402,0.47301041,59738.0,59737.0,0.001815]
[1728594897636,0.34577199,59738.0,59737.0,0.001815]
[1728594898279,0.34804136,59738.0,59737.0,0.001815]
[1728594898504,0.35004136,59738.0,59737.0,0.001815]
[1728594899147,0.35004136,59738.0,59737.0,0.000815]
[1728594899361,0.35004136,59738.0,59737.0,0.001815]
[1728594899798,0.35004136,59738.0,59737.0,0.000815]
[1728594900208,0.35104136,59738.0,59737.0,0.000815]
[1728594900630,0.35004136,59738.0,59737.0,0.000815]
[1728594900840,0.35604136,59738.0,59737.0,0.000815]
[1728594901057,0.35904136,59738.0,59737.0,0.000815]
[1728594901273,0.35404136,59738.0,59737.0,0.000815]
[1728594901511,0.35404136,59738.0,59737.0,0.002815]
[1728594901732,0.36104136,59738.0,59737.0,0.002815]
[1728594901954,0.36104136,59738.0,59737.0,0.000815]
[1728594902534,0.36104136,59738.0,59737.0,0.002815]
[1728594904290,0.36330982,59738.0,59737.0,0.002815]
[1728594905838,0.36330982,59738.0,59737.0,0.000815]
[1728594907296,0.36330982,59738.0,59737.0,0.002815]
[1728594909730,0.36330982,59738.0,59737.0,0.000815]
[1728594914589,0.19591282,59738.0,59737.0,0.000815]
[1728594916006,0.36330982,59738.0,59737.0,0.000815]
[1728594917252,0.19591282,59738.0,59737.0,0.170215]
[1728594917471,0.10391282,59738.0,59737.0,0.170215]
[1728594917683,0.09791282,59738.0,59737.0,0.170215]
[1728594917959,0.09391282,59738.0,59737.0,0.170215]
[1728594918388,0.09391282,59738.0,59737.0,0.002815]
[1728594918590,0.09091282,59738.0,59737.0,0.002815]
[1728594918818,0.25830982,59738.0,59737.0,0.002815]
[1728594919045,0.25930982,59738.0,59737.0,0.002815]
[1728594919686,0.26330982,59738.0,59737.0,0.002815]
[1728594919936,0.25930982,59738.0,59737.0,0.002815]
[1728594920141,0.26230982,59738.0,59737.0,0.002815]
[1728594922933,0.26230982,59738.0,59737.0,0.000815]
[1728594923196,0.09491282,59738.0,59737.0,0.000815]
[1728594926069,0.09491282,59738.0,59737.0,0.002815]
[1728594930416,0.09491282,59738.0,59737.0,0.175215]
[1728594930631,0.08583,59738.0,59737.0,0.175215]
[1728594931293,0.08483,59738.0,59737.0,0.175215]
[1728594931500,0.08183,59738.0,59737.0,0.176215]
[1728594931938,0.08927679,59738.0,59737.0,0.176215]
[1728594932144,0.08927679,59738.0,59737.0,0.175215]
[1728594932343,0.08927679,59738.0,59737.0,0.178215]
[1728594934693,0.08183,59738.0,59737.0,0.178215]
[1728594935119,0.00163,59738.0,59737.0,0.3475243]
[1728594935338,0.00163,59738.0,59737.0,0.39763595]
[1728594937283,0.00163,59738.0,59737.0,0.3475243]
[1728594948798,0.00908266,59738.0,59737.0,0.3475243]
[1728594949013,0.00163,59738.0,59737.0,0.3475243]
[1728594949245,0.00908285,59738.0,59737.0,0.3475243]
[1728594949466,0.00163,59738.0,59737.0,0.3475243]
[1728594949699,0.00908285,59738.0,59737.0,0.3475243]
[1728594949918,0.00163,59738.0,59737.0,0.3475243]
[1728594950123,0.00908322,59738.0,59737.0,0.3475243]
[1728594954414,0.08408322,59738.0,59737.0,0.3475243]
[1728594956155,0.07663,59738.0,59737.0,0.3475243]
[1728594957469,0.07663,59738.0,59737.0,0.39756636]
[1728594957887,0.00163,59738.0,59737.0,0.3475243]
[1728594958104,0.00163,59738.0,59737.0,0.42260812]
[1728594958319,0.00163,59738.0,59737.0,0.44763725]
[1728594958552,0.00163,59738.0,59737.0,1.94763725]
[1728594958772,0.00163,59738.0,59737.0,1.8475243]
[1728594958991,0.00163,59738.0,59737.0,1.97266549]
[1728594959408,0.00163,59738.0,59737.0,1.97766549]
[1728594959617,0.00163,59738.0,59737.0,2.10269373]
[1728594959832,0.00263,59738.0,59737.0,2.15769373]
[1728594960051,0.00263,59738.0,59737.0,2.0075243]
[1728594961183,0.00163,59738.0,59737.0,2.0075243]
[1728594961621,0.00263,59738.0,59737.0,2.0045243]
[1728594961832,0.00263,59738.0,59737.0,2.0145243]
[1728594962078,0.00263,59738.0,59737.0,2.23610248]
[1728594962308,0.00263,59738.0,59737.0,2.0045243]
[1728594962811,0.00263,59738.0,59737.0,2.0185243]
[1728594963268,0.00163,59738.0,59737.0,2.0185243]
[1728594963718,0.00263,59738.0,59737.0,2.0235243]
[1728594963935,0.00163,59738.0,59737.0,2.0185243]
[1728594964147,0.00163,59738.0,59737.0,2.0095243]
[1728594964349,0.00263,59738.0,59737.0,2.0235243]
[1728594965479,0.00263,59738.0,59737.0,2.17345954]
[1728594965687,0.00263,59738.0,59737.0,2.17346332]
[1728594966140,0.00263,59738.0,59737.0,2.0235243]
[1728594966828,0.00263,59738.0,59737.0,2.5235243]
[1728594970314,0.00263,59738.0,59737.0,2.64876272]
[1728594970511,0.00263,59738.0,59737.0,2.65076272]
[1728594977793,0.00263,59738.0,59737.0,2.82372163]
[1728594978006,0.00163,59748.0,59747.0,0.42884884]
[1728594978223,0.00163,59748.0,59747.0,0.57591972]
[1728594978441,0.00163,59748.0,59747.0,0.8300962]
[1728594978649,0.00163,59748.0,59747.0,2.3300962]
[1728594979300,0.00163,59748.0,59747.0,2.20515814]
[1728594979517,0.00263,59748.0,59747.0,2.21615814]
[1728594979729,0.00163,59748.0,59747.0,2.20515814]
[1728594980176,0.00163,59748.0,59747.0,2.70515814]
[1728594980404,0.00263,59748.0,59747.0,2.71915814]
[1728594980618,0.00263,59748.0,59747.0,2.73115814]
[1728594981105,0.00263,59748.0,59747.0,2.71915814]
[1728594981351,0.00263,59748.0,59747.0,2.7490557]
[1728594982000,0.00263,59748.0,59747.0,2.7720557]
[1728594983078,0.00163,59748.0,59747.0,2.7580557]
[1728594983315,1e-06,59748.0,59747.0,2.7580557]
[1728594983572,1e-06,59748.0,59747.0,3.0463794]
[1728594983818,1e-06,59748.0,59747.0,2.8109557]
[1728594984076,1e-06,59748.0,59747.0,2.8249557]
[1728594984285,1e-06,59748.0,59747.0,2.8109557]
[1728594984500,1e-06,59748.0,59747.0,2.7969557]
[1728594984937,1e-06,59748.0,59747.0,2.8109557]
[1728594985610,1e-06,59748.0,59747.0,2.8249557]
[1728594985852,1e-06,59748.0,59747.0,2.8109557]
[1728594986110,1e-06,59748.0,59747.0,2.8249557]
[1728594987488,1e-06,59748.0,59747.0,2.95219412]
[1728594987928,1e-06,59748.0,59747.0,2.8249557]
[1728594988554,1e-06,59748.0,59747.0,2.95219412]
[1728594989232,0.050702,59755.0,59754.0,0.304352]
[1728594989463,1e-06,59755.0,59754.0,0.5265613]
[1728594989905,1e-06,59755.0,59754.0,2.28103814]
[1728594990903,1e-06,59755.0,59754.0,2.29503814]
[1728594991367,1e-06,59755.0,59754.0,2.80903814]
[1728594992732,1e-06,59755.0,59754.0,2.93352921]
[1728594993350,1e-06,59755.0,59754.0,2.80903814]
[1728594993783,0.25094313,59760.0,59759.0,0.014]
[1728594993784,0.24857413,59760.0,59759.0,0.014]
[1728594993997,0.24857413,59760.0,59759.0,0.8028123]
[1728594994429,0.0815,59764.0,59763.0,0.279327]
[1728594994635,0.0815,59764.0,59763.0,0.57921273]
[1728594994838,0.0815,59764.0,59763.0,0.57587472]
[1728594995881,0.0815,59764.0,59763.0,0.57787472]
[1728594996092,0.0815,59764.0,59763.0,0.59187472]
[1728594996561,0.0791,59768.0,59764.0,0.300324]
[1728594996793,0.0791,59768.0,59764.0,0.47697916]
[1728594997016,0.0791,59768.0,59764.0,0.54832146]
[1728594997471,0.0791,59768.0,59764.0,0.4736333]
[1728594997925,0.000815,59782.0,59764.0,0.4736333]
[1728594997926,0.000815,59782.0,59764.0,0.60087172]
[1728594998162,0.0768,59772.0,59764.0,2.21445593]
[1728594998602,0.0768,59772.0,59771.0,0.55878184]
[1728594998828,0.0768,59772.0,59771.0,0.72809114]
[1728594999046,0.0768,59772.0,59771.0,0.77785299]
[1728594999267,0.0768,59772.0,59771.0,2.30073392]
[1728594999484,0.0768,59772.0,59771.0,2.30074305]
[1728594999702,0.0768,59772.0,59771.0,2.30272857]
[1728594999920,0.0768,59772.0,59771.0,2.24209114]
[1728595000151,0.0768,59772.0,59771.0,2.34161484]
[1728595000375,0.0979,59774.0,59773.0,0.304299]
[1728595000607,0.0979,59774.0,59773.0,0.54825305]
[1728595000850,0.0979,59774.0,59773.0,0.4716083]
[1728595001284,0.0979,59774.0,59773.0,0.57113463]
[1728595002681,0.0979,59774.0,59773.0,0.58413463]
[1728595002902,0.0979,59774.0,59773.0,0.59813463]
[1728595003126,0.0979,59774.0,59773.0,0.59812013]
[1728595003339,0.0979,59774.0,59773.0,0.4986083]
[1728595004007,0.0979,59774.0,59773.0,1.9986083]
[1728595005317,0.0979,59774.0,59773.0,2.12299809]
[1728595005969,0.0979,59774.0,59773.0,1.9986083]
[1728595006407,0.0977,59774.0,59773.0,1.9986083]
[1728595007711,0.0977,59774.0,59773.0,2.09812622]
[1728595007926,0.0977,59774.0,59773.0,2.09812596]
[1728595008156,0.0977,59774.0,59773.0,1.9986083]
[1728595008376,0.0977,59774.0,59773.0,2.09812602]
[1728595008599,0.0977,59774.0,59773.0,2.08512602]
[1728595009031,0.0977,59774.0,59773.0,2.09912602]
[1728595009259,0.0977,59774.0,59773.0,2.07112602]
[1728595009534,0.0977,59774.0,59773.0,2.21236444]
[1728595009755,0.0977,59774.0,59773.0,2.11284672]
[1728595009956,0.0977,59774.0,59773.0,2.12684672]
[1728595010365,0.0977,59774.0,59773.0,2.12766172]
[1728595010575,0.0977,59774.0,59773.0,2.11366172]
[1728595011015,0.0977,59774.0,59773.0,2.12766172]
[1728595011426,0.0977,59774.0,59773.0,2.20229833]
[1728595011639,0.0977,59774.0,59773.0,2.12766172]
[1728595012310,0.0977,59774.0,59773.0,2.20229421]
[1728595012729,0.0977,59774.0,59773.0,2.12766172]
[1728595013398,0.0977,59774.0,59773.0,2.2022991]
[1728595014729,0.1765,59774.0,59773.0,2.05206068]
[1728595014943,0.1765,59774.0,59773.0,0.5271951]
[1728595016093,0.1765,59774.0,59773.0,0.4724233]
[1728595016314,0.1765,59774.0,59773.0,0.4774233]
[1728595017154,0.1765,59774.0,59773.0,0.4724233]
[1728595017829,0.1765,59774.0,59773.0,0.4584233]
[1728595018048,0.1765,59774.0,59773.0,0.4634233]
[1728595018734,0.1765,59774.0,59773.0,0.4494233]
[1728595019176,0.1765,59774.0,59773.0,0.4634233]
[1728595020724,0.1765,59774.0,59773.0,0.51323083]
[1728595021370,0.1765,59774.0,59773.0,0.50823083]
[1728595021579,0.1765,59774.0,59773.0,2.00823083]
[1728595021787,0.1765,59774.0,59773.0,2.00828369]
[1728595022469,0.1765,59774.0,59773.0,2.01328369]
[1728595022682,0.1765,59774.0,59773.0,2.0381346]
[1728595023566,0.1765,59774.0,59773.0,1.9634233]
[1728595024055,0.17813,59774.0,59773.0,1.9634233]
[1728595024694,0.17813,59774.0,59773.0,2.06303837]
[1728595025357,0.17813,59774.0,59773.0,2.19046016]
[1728595026670,0.17813,59774.0,59773.0,2.21540978]
[1728595027572,0.17813,59774.0,59773.0,1.9584233]
[1728595027802,0.17813,59774.0,59773.0,2.08328471]
[1728595028656,0.17813,59774.0,59773.0,1.8584233]
[1728595028916,0.17813,59774.0,59773.0,0.2390814]
[1728595029141,0.1735,59772.0,59768.0,0.0499746]
[1728595029356,0.168926,59774.0,59767.0,0.005]
[1728595029357,0.1735,59768.0,59767.0,0.167316]
[1728595029584,0.1735,59768.0,59767.0,0.172316]
[1728595031127,0.1735,59768.0,59767.0,0.176316]
[1728595031632,0.1735,59768.0,59767.0,0.002]
[1728595031851,0.1735,59768.0,59767.0,0.007]
[1728595032268,0.1735,59768.0,59767.0,0.174316]
[1728595032488,0.1735,59768.0,59767.0,0.674316]
[1728595036016,0.1735,59768.0,59767.0,0.675131]
[1728595037882,0.1735,59768.0,59767.0,0.175131]
[1728595046502,0.1735,59768.0,59767.0,0.177131]
[1728595046954,0.1735,59768.0,59767.0,0.175131]
[1728595056586,0.1735,59768.0,59767.0,0.177131]
[1728595058665,0.1735,59768.0,59767.0,0.3464403]
[1728595059161,0.08233,59772.0,59771.0,0.167305]
[1728595059419,0.08233,59772.0,59771.0,0.172305]
[1728595059420,0.18033,59772.0,59771.0,0.172305]
[1728595060845,0.18033,59772.0,59771.0,0.174305]
[1728595061965,0.18133,59772.0,59771.0,0.182305]
[1728595062385,0.18133,59772.0,59771.0,0.186305]
[1728595063235,0.18133,59772.0,59771.0,0.184305]
[1728595066964,0.18133,59772.0,59771.0,0.186305]
[1728595069061,0.18133,59772.0,59771.0,0.184305]
[1728595069711,0.18133,59772.0,59771.0,0.186305]
[1728595071684,0.18133,59772.0,59771.0,0.18712]
[1728595074861,0.18133,59772.0,59771.0,0.23710591]
[1728595078352,0.18133,59772.0,59771.0,0.18712]
[1728595079056,0.18133,59772.0,59771.0,0.18512]
[1728595079261,0.18133,59772.0,59771.0,0.017815]
[1728595079465,0.335205,59771.0,59770.0,0.05005046]
[1728595080377,0.341608,59770.0,59769.0,0.0750757]
[1728595080578,0.167308,59770.0,59767.0,0.000815]
[1728595080786,0.0971,59769.0,59767.0,0.000815]
[1728595080984,0.20443842,59768.0,59767.0,0.000815]
[1728595081222,0.29703842,59768.0,59767.0,0.000815]
[1728595082011,0.29703842,59768.0,59767.0,0.001815]
[1728595082223,0.29703842,59768.0,59767.0,0.000815]
[1728595083231,0.1698,59768.0,59767.0,0.004815]
[1728595083683,0.29703842,59768.0,59767.0,0.004815]
[1728595083914,0.29703842,59768.0,59767.0,0.000815]
[1728595084177,0.29703842,59768.0,59767.0,0.001815]
[1728595088874,0.1698,59768.0,59767.0,0.001815]
[1728595090474,0.0926,59768.0,59767.0,0.169131]
[1728595091663,0.0926,59768.0,59767.0,0.171131]
[1728595092988,0.0926,59768.0,59767.0,0.169131]
[1728595093229,0.1718,59768.0,59767.0,0.001815]
[1728595100438,0.1718,59768.0,59767.0,0.169131]
[1728595100643,0.1718,59768.0,59767.0,0.001815]
[1728595113374,0.1718,59768.0,59767.0,0.169131]
[1728595113599,1e-06,59772.0,59771.0,0.135]
[1728595113812,1e-06,59772.0,59771.0,0.5625376]
[1728595114092,1e-06,59772.0,59771.0,2.0364143]
[1728595114328,1e-06,59772.0,59771.0,2.0134143]
[1728595114539,1e-06,59772.0,59771.0,2.14065272]
[1728595115155,0.001001,59772.0,59771.0,2.15165272]
[1728595115373,0.001001,59772.0,59771.0,2.16565272]
[1728595115580,1e-06,59772.0,59771.0,2.14065272]
[1728595115997,0.001001,59772.0,59771.0,2.16365272]
[1728595118291,0.001001,59772.0,59771.0,2.28842661]
[1728595119358,0.001001,59772.0,59771.0,2.16365272]
[1728595119983,0.001001,59772.0,59771.0,2.0364143]
[1728595120181,0.001001,59772.0,59771.0,0.66365272]
[1728595121326,0.001001,59772.0,59771.0,0.59885272]
[1728595121552,0.001001,59772.0,59771.0,0.69858554]
[1728595122002,0.001001,59772.0,59771.0,0.70527754]
[1728595123474,0.001001,59772.0,59771.0,0.60554472]
[1728595124128,0.001001,59772.0,59771.0,0.70527754]
[1728595124352,0.001001,59772.0,59771.0,0.68031225]
[1728595124980,0.001001,59772.0,59771.0,1.10554472]
[1728595125199,0.001001,59772.0,59771.0,1.18031231]
[1728595125650,0.001001,59772.0,59771.0,1.23101931]
[1728595126083,0.001001,59772.0,59771.0,1.23101344]
[1728595127210,0.001001,59772.0,59771.0,1.15625172]
[1728595127947,0.001001,59772.0,59771.0,1.23099902]
[1728595128988,0.001001,59772.0,59771.0,2.73099902]
[1728595129601,0.001001,59772.0,59771.0,2.65625172]
[1728595129809,0.001001,59772.0,59771.0,2.730993]
[1728595131950,0.000815,59788.0,59776.0,0.012]
[1728595132167,0.25094313,59783.0,59776.0,0.65055895]
[1728595132629,0.25094313,59783.0,59776.0,2.07583872]
[1728595133315,0.25094313,59783.0,59776.0,2.20037244]
[1728595133528,0.000815,59788.0,59781.0,0.202277]
[1728595133745,0.000815,59788.0,59787.0,0.17726]
[1728595133955,0.000815,59788.0,59787.0,0.4715693]
[1728595134179,0.000815,59788.0,59787.0,1.9735693]
[1728595134407,0.000815,59788.0,59787.0,2.10080772]
[1728595134646,0.000815,59788.0,59787.0,2.2913737]
[1728595135372,0.000815,59788.0,59787.0,2.18102821]
[1728595136095,0.000815,59788.0,59787.0,2.68102821]
[1728595136325,0.000815,59788.0,59787.0,2.79443279]
[1728595136922,0.000815,59788.0,59787.0,2.79243279]
[1728595138930,0.000815,59788.0,59787.0,2.79237171]
[1728595140165,0.000815,59788.0,59787.0,2.74269463]
[1728595140678,0.000815,59788.0,59787.0,2.67002821]
[1728595141879,0.000815,59788.0,59787.0,0.9765693]
[1728595142294,0.0079622,59788.0,59787.0,0.9765693]
[1728595142506,0.0079622,59788.0,59787.0,2.4765693]
[1728595144507,0.0079622,59788.0,59787.0,2.4845313]
[1728595145167,0.0079622,59788.0,59787.0,2.53416201]
[1728595145368,0.0079622,59788.0,59787.0,2.55916201]
[1728595145574,0.0079622,59788.0,59787.0,2.5095313]
[1728595146075,0.0079622,59788.0,59787.0,2.4935313]
[1728595146282,0.0079622,59788.0,59787.0,2.54497736]
[1728595146491,0.0079622,59788.0,59787.0,2.4845313]
[1728595146725,0.0079622,59788.0,59787.0,2.53415746]
[1728595146929,0.0079622,59788.0,59787.0,2.52015746]
[1728595147140,0.0079622,59788.0,59787.0,2.52015803]
[1728595147791,0.0079622,59788.0,59787.0,2.53415803]
[1728595148012,0.0079622,59788.0,59787.0,2.50615803]
[1728595148466,0.0079622,59788.0,59787.0,2.4705313]
[1728595149045,0.0079622,59788.0,59787.0,0.9655313]
[1728595149250,0.0988622,59788.0,59787.0,0.9655313]
[1728595149893,0.0988622,59788.0,59787.0,0.9795313]
[1728595150450,0.0988622,59788.0,59787.0,0.9655313]
[1728595150660,0.0988622,59788.0,59787.0,0.9705313]
[1728595150868,0.0988622,59788.0,59787.0,0.9845313]
[1728595151075,0.0988622,59788.0,59787.0,0.9795313]
[1728595152565,0.1807622,59788.0,59787.0,0.9795313]
[1728595154282,0.1807622,59788.0,59787.0,2.4795313]
[1728595157112,0.1807622,59788.0,59787.0,0.8795313]
[1728595159694,0.1807622,59788.0,59787.0,0.8515313]
[1728595159903,0.1807622,59788.0,59787.0,0.8795313]
[1728595160114,0.1807622,59788.0,59787.0,0.8655313]
[1728595160341,0.1807622,59788.0,59787.0,0.8515313]
[1728595160550,0.1807622,59788.0,59787.0,0.8635313]
[1728595160765,0.1807622,59788.0,59787.0,0.8745313]
[1728595160978,0.1807622,59788.0,59787.0,0.8665693]
[1728595161197,0.1807622,59788.0,59787.0,0.8545693]
[1728595161412,0.1807622,59788.0,59787.0,0.513]
[1728595161627,0.1807622,59788.0,59787.0,0.67526]
[1728595161844,0.1807622,59788.0,59787.0,0.508]
[1728595162082,0.1807622,59788.0,59787.0,0.67526]
[1728595162307,0.1807622,59788.0,59787.0,0.508]
[1728595162517,0.37422111,59788.0,59787.0,0.508]
[1728595162693,0.37422111,59788.0,59787.0,0.5]
[1728595163132,0.37422111,59788.0,59787.0,0.512]
[1728595163344,0.37422111,59788.0,59782.0,0.00663]
[1728595163345,0.1739,59783.0,59782.0,0.00163]
[1728595163559,0.341171,59783.0,59782.0,0.00163]
[1728595164195,0.53462991,59783.0,59782.0,0.00163]
[1728595164462,0.37450611,59783.0,59782.0,0.00163]
[1728595164670,0.37450611,59783.0,59782.0,0.00863]
[1728595164893,0.54177711,59783.0,59782.0,0.00863]
[1728595165326,0.54177711,59783.0,59782.0,0.50863]
[1728595166402,0.54177711,59783.0,59782.0,0.50163]
[1728595166817,0.54277711,59783.0,59782.0,0.50163]
[1728595167040,0.37650611,59783.0,59782.0,0.00163]
[1728595167254,0.37650611,59783.0,59782.0,0.00263]
[1728595167485,0.37950611,59783.0,59782.0,0.00263]
[1728595167714,0.37750611,59783.0,59782.0,0.00263]
[1728595167917,0.53605011,59783.0,59782.0,0.00363]
[1728595170921,0.38550611,59783.0,59782.0,0.00363]
[1728595171145,0.53605011,59783.0,59782.0,0.00363]
[1728595172848,0.38550611,59783.0,59782.0,0.00363]
[1728595176423,0.48556711,59783.0,59782.0,0.00363]
[1728595178505,0.2921082,59783.0,59782.0,0.00363]
[1728595179552,0.41920422,59783.0,59782.0,0.00363]
[1728595188126,0.56974822,59783.0,59782.0,0.00363]
[1728595189418,0.41920422,59783.0,59782.0,0.00363]
[1728595196799,0.56974822,59783.0,59782.0,0.00363]
[1728595197295,0.2921082,59783.0,59782.0,0.00363]
[1728595197518,0.41920422,59783.0,59782.0,0.00363]
[1728595198228,0.56974822,59783.0,59782.0,0.00363]
[1728595198989,0.41920422,59783.0,59782.0,0.00363]
[1728595199631,0.46968722,59783.0,59782.0,0.00363]
[1728595200475,0.31914322,59783.0,59782.0,0.00363]
[1728595201496,0.46968722,59783.0,59782.0,0.00363]
[1728595201940,0.31914322,59783.0,59782.0,0.00363]
[1728595202382,0.46968722,59783.0,59782.0,0.00363]
[1728595204036,0.31914322,59783.0,59782.0,0.00363]
[1728595204253,0.1920472,59783.0,59782.0,0.00363]
[1728595204500,0.1920472,59783.0,59782.0,0.154176]
[1728595205906,0.1840472,59783.0,59782.0,0.153176]
[1728595206320,0.1840472,59783.0,59782.0,0.154176]
[1728595206615,0.1840472,59783.0,59782.0,0.153176]
[1728595206616,0.1810472,59783.0,59782.0,0.153176]
[1728595206799,0.1810472,59783.0,59782.0,0.154176]
[1728595207763,0.1810472,59783.0,59782.0,0.153176]
[1728595207936,0.1810472,59783.0,59782.0,0.152176]
[1728595208455,0.1810472,59783.0,59782.0,0.154176]
[1728595208660,0.1810472,59783.0,59782.0,0.152176]
[1728595211353,0.1810472,59783.0,59782.0,0.20201885]
[1728595212455,0.1810472,59783.0,59782.0,0.152176]
[1728595212692,0.0071472,59783.0,59782.0,0.152176]
[1728595214471,0.0071472,59783.0,59782.0,0.20201885]
[1728595215351,0.0071472,59783.0,59782.0,0.152176]
[1728595216230,0.0071472,59783.0,59782.0,0.154176]
[1728595218547,0.0071472,59783.0,59782.0,0.152176]
[1728595219708,0.0071472,59783.0,59782.0,0.154176]
[1728595220611,0.0071472,59783.0,59782.0,0.159176]
[1728595223261,0.0071472,59783.0,59782.0,0.154176]
[1728595223497,0.0071472,59783.0,59782.0,0.159176]
[1728595231698,0.01533508,59783.0,59782.0,0.159176]
[1728595231916,0.0071472,59783.0,59782.0,0.159176]
[1728595232859,0.0071472,59783.0,59782.0,0.3284853]
[1728595233084,0.0071472,59783.0,59782.0,0.37838553]
[1728595233283,0.0071472,59783.0,59782.0,0.3284853]
[1728595233492,0.0071472,59783.0,59782.0,0.40331308]
[1728595233663,0.0071472,59783.0,59782.0,0.3284853]
[1728595234255,0.0071472,59783.0,59782.0,0.40331779]
[1728595234453,0.0071472,59783.0,59782.0,0.40731779]
[1728595235478,0.0071472,59783.0,59782.0,0.33499445]
[1728595235680,0.0071472,59783.0,59782.0,0.43775242]
[1728595237544,0.00559057,59783.0,59782.0,0.43375242]
[1728595237773,0.00559057,59783.0,59782.0,0.44175242]
[1728595237983,0.00559057,59783.0,59782.0,0.43875242]
[1728595238184,0.00559057,59783.0,59782.0,0.43075242]